[Event "*** MasterClass Titled Tuesday Blitz"]
[Site "Chess.com"]
[Date "2017.10.03"]
[Round "5"]
[White "JSPrepz"]
[Black "Zufi1811"]
[Result "0-1"]
[WhiteElo "2521"]
[BlackElo "2426"]
[TimeControl "180+2"]
[EndTime "14:08:35 PDT"]
[Termination "Zufi1811 won by checkmate"]

1. e4 {[%clk 0:03:01.9]} 1... c5 {[%clk 0:02:59.4]} 2. Nf3 {[%clk 0:03:02.3]}
2... d6 {[%clk 0:03:00]} 3. d4 {[%clk 0:03:02.4]} 3... cxd4 {[%clk 0:03:01.9]}
4. Nxd4 {[%clk 0:03:03.8]} 4... Nf6 {[%clk 0:03:03.4]} 5. Nc3 {[%clk 0:03:05.2]}
5... a6 {[%clk 0:03:05]} 6. Bg5 {[%clk 0:03:05.9]} 6... e6 {[%clk 0:02:59.9]} 7.
f4 {[%clk 0:03:06.5]} 7... Qc7 {[%clk 0:03:00.8]} 8. Qf3 {[%clk 0:03:07.4]} 8...
b5 {[%clk 0:03:01.1]} 9. O-O-O {[%clk 0:03:01.7]} 9... b4 {[%clk 0:03:01.6]} 10.
Na4 {[%clk 0:03:01.4]} 10... Nbd7 {[%clk 0:03:01.2]} 11. Bd3 {[%clk 0:02:56.9]}
11... Bb7 {[%clk 0:03:01.8]} 12. Rhe1 {[%clk 0:02:55.8]} 12... Be7 {[%clk
0:03:00.4]} 13. g4 {[%clk 0:02:56]} 13... O-O {[%clk 0:02:54.1]} 14. h4 {[%clk
0:02:48.5]} 14... Nc5 {[%clk 0:02:49.9]} 15. b3 {[%clk 0:02:23.1]} 15... Nxa4
{[%clk 0:02:31.1]} 16. bxa4 {[%clk 0:02:25]} 16... Qa5 {[%clk 0:02:32.2]} 17.
Kb1 {[%clk 0:02:07.1]} 17... Qxa4 {[%clk 0:02:30.9]} 18. f5 {[%clk 0:02:01.6]}
18... Rac8 {[%clk 0:01:37]} 19. Bc1 {[%clk 0:01:55.9]} 19... Nd7 {[%clk
0:01:34.8]} 20. g5 {[%clk 0:01:53.5]} 20... Ne5 {[%clk 0:01:25]} 21. Qg3 {[%clk
0:01:53.8]} 21... Nxd3 {[%clk 0:01:23]} 22. Rxd3 {[%clk 0:01:53.8]} 22... e5
{[%clk 0:01:15.5]} 23. Nb3 {[%clk 0:01:54.3]} 23... f6 {[%clk 0:00:55.1]} 24.
gxf6 {[%clk 0:01:36.7]} 24... Bxf6 {[%clk 0:00:51.5]} 25. Rxd6 {[%clk
0:01:37.7]} 25... Rc4 {[%clk 0:00:40]} 26. Rg1 {[%clk 0:01:29.5]} 26... Rc7
{[%clk 0:00:19.6]} 27. Qg4 {[%clk 0:01:18.7]} 27... h5 {[%clk 0:00:17.5]} 28.
Qe2 {[%clk 0:01:17.3]} 28... Qb5 {[%clk 0:00:16.2]} 29. Qf3 {[%clk 0:01:12]}
29... Qc4 {[%clk 0:00:16]} 30. Qxh5 {[%clk 0:00:20.8]} 30... Bxe4 {[%clk
0:00:12.7]} 31. Bb2 {[%clk 0:00:22.2]} 31... Qxc2+ {[%clk 0:00:10.2]} 32. Ka1
{[%clk 0:00:23.7]} 32... Qf2 {[%clk 0:00:08.7]} 33. Rdd1 {[%clk 0:00:22.1]}
33... Qxf5 {[%clk 0:00:07.4]} 34. Qe2 {[%clk 0:00:19.5]} 34... Bf3 {[%clk
0:00:07.7]} 35. Qf2 {[%clk 0:00:20.9]} 35... e4 {[%clk 0:00:07.4]} 36. Rd2
{[%clk 0:00:14.8]} 36... Bxb2+ {[%clk 0:00:06.4]} 37. Rxb2 {[%clk 0:00:16.7]}
37... Qe5 {[%clk 0:00:04.4]} 38. h5 {[%clk 0:00:17.7]} 38... e3 {[%clk
0:00:05.2]} 39. Qh4 {[%clk 0:00:16]} 39... e2 {[%clk 0:00:06.4]} 40. h6 {[%clk
0:00:17.6]} 40... Rff7 {[%clk 0:00:03.8]} 41. hxg7 {[%clk 0:00:17.6]} 41... Rxg7
{[%clk 0:00:05.7]} 42. Qd8+ {[%clk 0:00:18]} 42... Kh7 {[%clk 0:00:05.8]} 43.
Qh4+ {[%clk 0:00:17]} 43... Kg8 {[%clk 0:00:06.1]} 44. Qd8+ {[%clk 0:00:16.7]}
44... Kf7 {[%clk 0:00:07.6]} 45. Re1 {[%clk 0:00:15.2]} 45... Rc2 {[%clk
0:00:07]} 46. Qd7+ {[%clk 0:00:14.5]} 46... Kf6 {[%clk 0:00:06.7]} 47. Qd8+
{[%clk 0:00:15.2]} 47... Kf7 {[%clk 0:00:06.4]} 48. Qd7+ {[%clk 0:00:15.9]}
48... Kg8 {[%clk 0:00:07]} 49. Qd8+ {[%clk 0:00:15.9]} 49... Kh7 {[%clk
0:00:08]} 50. Qh4+ {[%clk 0:00:16]} 50... Kg6 {[%clk 0:00:09.3]} 51. Rg1+ {[%clk
0:00:16]} 51... Kf7 {[%clk 0:00:09.4]} 52. Rxg7+ {[%clk 0:00:12]} 52... Kxg7
{[%clk 0:00:09.7]} 53. Nd4 {[%clk 0:00:06]} 53... e1=Q+ {[%clk 0:00:09.9]} 54.
Rb1 {[%clk 0:00:07.2]} 54... Qxb1+ {[%clk 0:00:08.6]} 55. Kxb1 {[%clk
0:00:09.1]} 55... Rg2 {[%clk 0:00:07.1]} 56. Kc1 {[%clk 0:00:05.3]} 56... Qe3+
{[%clk 0:00:07.4]} 57. Kb1 {[%clk 0:00:06.9]} 57... Be4+ {[%clk 0:00:07.5]} 58.
Ka1 {[%clk 0:00:08]} 58... Qc3# {[%clk 0:00:08.2]} 0-1

[Event "*** MasterClass Titled Tuesday Blitz"]
[Site "Chess.com"]
[Date "2017.10.03"]
[Round "5"]
[White "Taron_Shagbazyan"]
[Black "plouarzel"]
[Result "0-1"]
[WhiteElo "2499"]
[BlackElo "2479"]
[TimeControl "180+2"]
[EndTime "14:08:39 PDT"]
[Termination "plouarzel won on time"]

1. d4 {[%clk 0:03:01.9]} 1... d6 {[%clk 0:02:57.2]} 2. c4 {[%clk 0:03:02.8]}
2... e5 {[%clk 0:02:57.8]} 3. e3 {[%clk 0:03:01]} 3... Nf6 {[%clk 0:02:52]} 4.
Nc3 {[%clk 0:03:01.6]} 4... Be7 {[%clk 0:02:52.2]} 5. g3 {[%clk 0:03:01.6]} 5...
O-O {[%clk 0:02:52.6]} 6. Bg2 {[%clk 0:03:02.8]} 6... Re8 {[%clk 0:02:50.5]} 7.
Nge2 {[%clk 0:03:03]} 7... c6 {[%clk 0:02:50.1]} 8. O-O {[%clk 0:03:03.2]} 8...
Nbd7 {[%clk 0:02:45.3]} 9. b3 {[%clk 0:03:03.8]} 9... Bf8 {[%clk 0:02:45.5]} 10.
Qc2 {[%clk 0:03:00.3]} 10... exd4 {[%clk 0:02:39.2]} 11. exd4 {[%clk 0:02:57.8]}
11... Nb6 {[%clk 0:02:38.8]} 12. h3 {[%clk 0:02:55.6]} 12... d5 {[%clk
0:02:39.9]} 13. c5 {[%clk 0:02:47.3]} 13... Nbd7 {[%clk 0:02:39.7]} 14. b4
{[%clk 0:02:43.7]} 14... a6 {[%clk 0:02:39.7]} 15. g4 {[%clk 0:02:22.6]} 15...
g6 {[%clk 0:02:37.4]} 16. Bf4 {[%clk 0:02:17.5]} 16... Bg7 {[%clk 0:02:35]} 17.
Ng3 {[%clk 0:02:19]} 17... Nf8 {[%clk 0:02:19.8]} 18. Qd2 {[%clk 0:01:58.5]}
18... Ne6 {[%clk 0:02:16.2]} 19. Be5 {[%clk 0:01:49]} 19... Nd7 {[%clk
0:01:56.7]} 20. Bxg7 {[%clk 0:01:49.6]} 20... Nxg7 {[%clk 0:01:57.3]} 21. Rae1
{[%clk 0:01:39.9]} 21... Rxe1 {[%clk 0:01:57.8]} 22. Rxe1 {[%clk 0:01:39.6]}
22... Nf8 {[%clk 0:01:56.8]} 23. a4 {[%clk 0:01:33]} 23... Nfe6 {[%clk
0:01:53.2]} 24. f4 {[%clk 0:01:08.8]} 24... Qf6 {[%clk 0:01:44.3]} 25. Nce2
{[%clk 0:01:02.8]} 25... Bd7 {[%clk 0:01:30.4]} 26. Rf1 {[%clk 0:01:02.8]} 26...
Qd8 {[%clk 0:01:08.3]} 27. f5 {[%clk 0:01:02.6]} 27... Nf8 {[%clk 0:00:45.6]}
28. f6 {[%clk 0:00:46]} 28... Ne8 {[%clk 0:00:46.8]} 29. g5 {[%clk 0:00:36.8]}
29... Ne6 {[%clk 0:00:47.8]} 30. h4 {[%clk 0:00:37.7]} 30... N8c7 {[%clk
0:00:46.4]} 31. a5 {[%clk 0:00:38.1]} 31... Nb5 {[%clk 0:00:46.2]} 32. h5 {[%clk
0:00:34.6]} 32... Qf8 {[%clk 0:00:40.6]} 33. hxg6 {[%clk 0:00:35.7]} 33... hxg6
{[%clk 0:00:38.2]} 34. Kf2 {[%clk 0:00:37.1]} 34... Qb8 {[%clk 0:00:27.2]} 35.
Rh1 {[%clk 0:00:37.9]} 35... Qc7 {[%clk 0:00:24.4]} 36. Rh4 {[%clk 0:00:38]}
36... Re8 {[%clk 0:00:24.4]} 37. Qc1 {[%clk 0:00:31.4]} 37... Ng7 {[%clk
0:00:14.3]} 38. Qh1 {[%clk 0:00:27]} 38... Nh5 {[%clk 0:00:13.4]} 39. Nxh5
{[%clk 0:00:27.2]} 39... Rxe2+ {[%clk 0:00:14.4]} 40. Kxe2 {[%clk 0:00:27.9]}
40... gxh5 {[%clk 0:00:15.7]} 41. Bf3 {[%clk 0:00:25.8]} 41... Qg3 {[%clk
0:00:12.2]} 42. Qh2 {[%clk 0:00:26.7]} 42... Nxd4+ {[%clk 0:00:11.8]} 43. Ke3
{[%clk 0:00:21.4]} 43... Nf5+ {[%clk 0:00:10.8]} 44. Ke2 {[%clk 0:00:22.7]}
44... Qxh4 {[%clk 0:00:10.8]} 45. Qb8+ {[%clk 0:00:22.5]} 45... Kh7 {[%clk
0:00:10.2]} 46. Qc7 {[%clk 0:00:23.5]} 46... Qc4+ {[%clk 0:00:09.1]} 47. Kf2
{[%clk 0:00:24]} 47... Qd4+ {[%clk 0:00:10.1]} 48. Kf1 {[%clk 0:00:22.4]} 48...
Qd3+ {[%clk 0:00:10.1]} 49. Kf2 {[%clk 0:00:23.3]} 49... Qe3+ {[%clk 0:00:11.2]}
50. Kg2 {[%clk 0:00:24.8]} 50... Qxg5+ {[%clk 0:00:11.6]} 51. Kf2 {[%clk
0:00:24.8]} 51... Qe3+ {[%clk 0:00:10.4]} 52. Kg2 {[%clk 0:00:26.2]} 52... Be6
{[%clk 0:00:11.2]} 53. Qh2 {[%clk 0:00:25.9]} 53... Qd2+ {[%clk 0:00:11.5]} 54.
Kg1 {[%clk 0:00:26.9]} 54... Qxh2+ {[%clk 0:00:12.9]} 55. Kxh2 {[%clk
0:00:25.5]} 55... Kg6 {[%clk 0:00:13.8]} 56. Kg2 {[%clk 0:00:26.2]} 56... Nh4+
{[%clk 0:00:14.6]} 0-1

[Event "*** MasterClass Titled Tuesday Blitz"]
[Site "Chess.com"]
[Date "2017.10.03"]
[Round "5"]
[White "toad"]
[Black "Too_Stupid_To_Play"]
[Result "0-1"]
[WhiteElo "2116"]
[BlackElo "2153"]
[TimeControl "180+2"]
[EndTime "14:08:49 PDT"]
[Termination "Too_Stupid_To_Play won by checkmate"]

1. d4 {[%clk 0:03:01.9]} 1... Nf6 {[%clk 0:02:58.1]} 2. c4 {[%clk 0:03:03]} 2...
e6 {[%clk 0:02:59.1]} 3. g3 {[%clk 0:03:04]} 3... c5 {[%clk 0:02:59.6]} 4. d5
{[%clk 0:03:05]} 4... exd5 {[%clk 0:03:01.5]} 5. cxd5 {[%clk 0:03:06.5]} 5... d6
{[%clk 0:03:03.2]} 6. Nc3 {[%clk 0:03:07.4]} 6... g6 {[%clk 0:03:05.1]} 7. Bg2
{[%clk 0:03:08.7]} 7... Bg7 {[%clk 0:03:07]} 8. Nf3 {[%clk 0:03:10]} 8... O-O
{[%clk 0:03:08.9]} 9. O-O {[%clk 0:03:11]} 9... a6 {[%clk 0:03:10.3]} 10. a4
{[%clk 0:03:11.5]} 10... Re8 {[%clk 0:03:11.1]} 11. Re1 {[%clk 0:03:12.2]} 11...
Nbd7 {[%clk 0:03:09.2]} 12. Bf4 {[%clk 0:03:11.3]} 12... Nf8 {[%clk 0:03:09.3]}
13. a5 {[%clk 0:03:08.3]} 13... h6 {[%clk 0:03:02.3]} 14. Nd2 {[%clk 0:03:08.1]}
14... g5 {[%clk 0:03:01.5]} 15. Be3 {[%clk 0:03:08.3]} 15... Ng4 {[%clk
0:03:02.8]} 16. Nc4 {[%clk 0:03:07.7]} 16... b5 {[%clk 0:02:44.8]} 17. axb6
{[%clk 0:03:05.7]} 17... Nxe3 {[%clk 0:02:45.5]} 18. Nxe3 {[%clk 0:03:06.2]}
18... Qxb6 {[%clk 0:02:45.9]} 19. Nc4 {[%clk 0:03:05.6]} 19... Qc7 {[%clk
0:02:42.1]} 20. Ne4 {[%clk 0:02:40.9]} 20... Rd8 {[%clk 0:02:31]} 21. Qd2 {[%clk
0:02:07.2]} 21... Rb8 {[%clk 0:02:08.8]} 22. Ra3 {[%clk 0:02:02.6]} 22... Rb4
{[%clk 0:01:59.7]} 23. Na5 {[%clk 0:01:53.4]} 23... Rxb2 {[%clk 0:01:41.3]} 24.
Qd3 {[%clk 0:01:54.7]} 24... Ng6 {[%clk 0:01:33.9]} 25. Nc6 {[%clk 0:01:54]}
25... Re8 {[%clk 0:01:33.2]} 26. Qf3 {[%clk 0:01:40.7]} 26... f5 {[%clk
0:01:10.3]} 27. Qh5 {[%clk 0:01:25.9]} 27... fxe4 {[%clk 0:00:59.3]} 28. Qxg6
{[%clk 0:01:26.7]} 28... Qf7 {[%clk 0:01:01]} 29. Qxf7+ {[%clk 0:01:09.6]} 29...
Kxf7 {[%clk 0:01:02.9]} 30. Re3 {[%clk 0:00:35.8]} 30... Bf5 {[%clk 0:00:56.4]}
31. Ra1 {[%clk 0:00:21.4]} 31... Rb6 {[%clk 0:00:52.8]} 32. Ra4 {[%clk
0:00:20.2]} 32... Rb1+ {[%clk 0:00:37.2]} 33. Bf1 {[%clk 0:00:20.6]} 33... Ra8
{[%clk 0:00:38.4]} 34. Kg2 {[%clk 0:00:19.3]} 34... h5 {[%clk 0:00:18.3]} 35.
Rea3 {[%clk 0:00:19.7]} 35... h4 {[%clk 0:00:11.7]} 36. h3 {[%clk 0:00:20.3]}
36... Bxh3+ {[%clk 0:00:07]} 37. Kxh3 {[%clk 0:00:21.3]} 37... Rxf1 {[%clk
0:00:08.9]} 38. Rxa6 {[%clk 0:00:18.5]} 38... Rxa6 {[%clk 0:00:07.6]} 39. Rxa6
{[%clk 0:00:19.6]} 39... Rxf2 {[%clk 0:00:09.1]} 40. Ra7+ {[%clk 0:00:19.4]}
40... Kg6 {[%clk 0:00:10.4]} 41. gxh4 {[%clk 0:00:17.2]} 41... gxh4 {[%clk
0:00:04.7]} 42. Kxh4 {[%clk 0:00:13.8]} 42... Rxe2 {[%clk 0:00:05.8]} 43. Kg3
{[%clk 0:00:10.1]} 43... e3 {[%clk 0:00:02.7]} 44. Kf3 {[%clk 0:00:10.1]} 44...
Re1 {[%clk 0:00:04.2]} 45. Re7 {[%clk 0:00:10.2]} 45... Bd4 {[%clk 0:00:04.6]}
46. Re6+ {[%clk 0:00:10.1]} 46... Kf5 {[%clk 0:00:05.3]} 47. Ne7+ {[%clk
0:00:10]} 47... Kg5 {[%clk 0:00:06.1]} 48. Rg6+ {[%clk 0:00:10.2]} 48... Kh5
{[%clk 0:00:07]} 49. Rg2 {[%clk 0:00:10.2]} 49... Rf1+ {[%clk 0:00:07.7]} 50.
Kg3 {[%clk 0:00:04.9]} 50... Rf2 {[%clk 0:00:09.6]} 51. Rxf2 {[%clk 0:00:03.5]}
51... exf2 {[%clk 0:00:11.5]} 52. Kg2 {[%clk 0:00:05.3]} 52... c4 {[%clk
0:00:12]} 53. Nf5 {[%clk 0:00:06.3]} 53... Bc5 {[%clk 0:00:11.1]} 54. Ng3+
{[%clk 0:00:07.6]} 54... Kg4 {[%clk 0:00:12.2]} 55. Ne2 {[%clk 0:00:09.5]} 55...
Kf5 {[%clk 0:00:12.3]} 56. Nc3 {[%clk 0:00:10.9]} 56... Kf4 {[%clk 0:00:12.9]}
57. Kf1 {[%clk 0:00:12.5]} 57... Ke3 {[%clk 0:00:14.1]} 58. Nd1+ {[%clk
0:00:13.3]} 58... Kd2 {[%clk 0:00:15]} 59. Nb2 {[%clk 0:00:14.2]} 59... c3
{[%clk 0:00:16.2]} 60. Nc4+ {[%clk 0:00:14.6]} 60... Kd1 {[%clk 0:00:17.1]} 61.
Kg2 {[%clk 0:00:04.5]} 61... c2 {[%clk 0:00:17.9]} 62. Nb2+ {[%clk 0:00:04.7]}
62... Ke2 {[%clk 0:00:18.5]} 63. Kh2 {[%clk 0:00:03.4]} 63... f1=Q {[%clk
0:00:18.8]} 64. Nd3 {[%clk 0:00:04.9]} 64... Kxd3 {[%clk 0:00:14.2]} 65. Kg3
{[%clk 0:00:06.1]} 65... Qf2+ {[%clk 0:00:14.9]} 66. Kh3 {[%clk 0:00:06.3]}
66... Qg1 {[%clk 0:00:15.4]} 67. Kh4 {[%clk 0:00:07.4]} 67... c1=Q {[%clk
0:00:16.2]} 68. Kh3 {[%clk 0:00:08.6]} 68... Qh6# {[%clk 0:00:16.9]} 0-1

[Event "*** MasterClass Titled Tuesday Blitz"]
[Site "Chess.com"]
[Date "2017.10.03"]
[Round "5"]
[White "Masterbeaterr"]
[Black "peteseeger"]
[Result "1/2-1/2"]
[WhiteElo "2287"]
[BlackElo "2142"]
[TimeControl "180+2"]
[EndTime "14:08:56 PDT"]
[Termination "Game drawn - insufficient material"]

1. Nf3 {[%clk 0:03:01.9]} 1... g6 {[%clk 0:02:59.8]} 2. g3 {[%clk 0:03:03.2]}
2... Bg7 {[%clk 0:03:00.1]} 3. Bg2 {[%clk 0:03:05.1]} 3... f5 {[%clk 0:02:59.9]}
4. O-O {[%clk 0:03:05.9]} 4... Nf6 {[%clk 0:03:00.8]} 5. d3 {[%clk 0:03:07.3]}
5... O-O {[%clk 0:03:01]} 6. c4 {[%clk 0:03:06]} 6... d6 {[%clk 0:03:00.6]} 7.
Nc3 {[%clk 0:03:07.4]} 7... Nc6 {[%clk 0:03:01.1]} 8. a3 {[%clk 0:03:04.6]} 8...
Nh5 {[%clk 0:03:01]} 9. Bd2 {[%clk 0:03:03.2]} 9... f4 {[%clk 0:03:01.6]} 10. b4
{[%clk 0:03:01.9]} 10... Bg4 {[%clk 0:03:02]} 11. Rb1 {[%clk 0:02:59.1]} 11...
e6 {[%clk 0:02:54.5]} 12. b5 {[%clk 0:02:56.2]} 12... Nd4 {[%clk 0:02:55.2]} 13.
Nxd4 {[%clk 0:02:49.8]} 13... Bxd4 {[%clk 0:02:55.5]} 14. Qe1 {[%clk 0:02:40.5]}
14... fxg3 {[%clk 0:02:54.2]} 15. hxg3 {[%clk 0:02:34.6]} 15... Nxg3 {[%clk
0:02:46.6]} 16. e3 {[%clk 0:02:35.4]} 16... Bxc3 {[%clk 0:02:46.7]} 17. fxg3
{[%clk 0:02:31.4]} 17... Rxf1+ {[%clk 0:02:33.2]} 18. Bxf1 {[%clk 0:02:31.6]}
18... Bxd2 {[%clk 0:02:22.3]} 19. Qxd2 {[%clk 0:02:33.5]} 19... d5 {[%clk
0:02:21]} 20. c5 {[%clk 0:02:32.2]} 20... Qg5 {[%clk 0:02:15.6]} 21. Rb4 {[%clk
0:02:22.7]} 21... Rf8 {[%clk 0:02:13.1]} 22. Bg2 {[%clk 0:02:22.3]} 22... Bf3
{[%clk 0:02:08.5]} 23. Kh2 {[%clk 0:02:10.4]} 23... e5 {[%clk 0:01:54.9]} 24.
Rh4 {[%clk 0:02:05.5]} 24... e4 {[%clk 0:01:36.9]} 25. dxe4 {[%clk 0:02:02.6]}
25... dxe4 {[%clk 0:01:35.5]} 26. Qa2+ {[%clk 0:01:51.4]} 26... Kg7 {[%clk
0:01:29.7]} 27. Qb2+ {[%clk 0:01:48.8]} 27... Qf6 {[%clk 0:01:26.5]} 28. Qxf6+
{[%clk 0:01:41.3]} 28... Rxf6 {[%clk 0:01:27.2]} 29. Bf1 {[%clk 0:01:28]} 29...
Rf5 {[%clk 0:01:24.9]} 30. c6 {[%clk 0:01:20.3]} 30... bxc6 {[%clk 0:01:24.9]}
31. bxc6 {[%clk 0:01:22.2]} 31... Rc5 {[%clk 0:01:25.1]} 32. Kg1 {[%clk
0:01:09.1]} 32... Rxc6 {[%clk 0:01:24.6]} 33. Rh2 {[%clk 0:01:10.7]} 33... Rc1
{[%clk 0:01:19.4]} 34. Rd2 {[%clk 0:01:08.1]} 34... Kf6 {[%clk 0:01:17.1]} 35.
Kf2 {[%clk 0:01:08.6]} 35... Bg4 {[%clk 0:01:12.5]} 36. Bg2 {[%clk 0:01:04.4]}
36... Bf5 {[%clk 0:01:05.4]} 37. Bf1 {[%clk 0:00:55]} 37... h5 {[%clk
0:00:55.9]} 38. Rb2 {[%clk 0:00:50]} 38... Ra1 {[%clk 0:00:40.4]} 39. Rc2 {[%clk
0:00:50.3]} 39... Rxa3 {[%clk 0:00:40.4]} 40. Rxc7 {[%clk 0:00:50.7]} 40... Ra2+
{[%clk 0:00:41.4]} 41. Kg1 {[%clk 0:00:52]} 41... a5 {[%clk 0:00:39.4]} 42. Bc4
{[%clk 0:00:46.9]} 42... Ra1+ {[%clk 0:00:33.8]} 43. Kf2 {[%clk 0:00:48]} 43...
Kg5 {[%clk 0:00:34.5]} 44. Rc5 {[%clk 0:00:38.8]} 44... Rc1 {[%clk 0:00:33.5]}
45. Rc6 {[%clk 0:00:39.6]} 45... a4 {[%clk 0:00:33]} 46. Bd5 {[%clk 0:00:37.2]}
46... Rxc6 {[%clk 0:00:32.4]} 47. Bxc6 {[%clk 0:00:39.1]} 47... Be6 {[%clk
0:00:32.7]} 48. Bxa4 {[%clk 0:00:39.8]} 48... Bf5 {[%clk 0:00:26.5]} 49. Bd1
{[%clk 0:00:38.9]} 49... Kf6 {[%clk 0:00:27.3]} 50. Be2 {[%clk 0:00:38.6]} 50...
Ke5 {[%clk 0:00:28.6]} 51. Bd1 {[%clk 0:00:39.4]} 51... Kd6 {[%clk 0:00:29.9]}
52. Bb3 {[%clk 0:00:40.5]} 52... Kc5 {[%clk 0:00:31.1]} 53. Bf7 {[%clk 0:00:41]}
53... Kb4 {[%clk 0:00:31.7]} 54. Be8 {[%clk 0:00:42.4]} 54... Kc3 {[%clk
0:00:32.6]} 55. Bf7 {[%clk 0:00:43.7]} 55... Kd2 {[%clk 0:00:33.5]} 56. Be8
{[%clk 0:00:45.2]} 56... Kc3 {[%clk 0:00:34.5]} 57. Bf7 {[%clk 0:00:46.4]} 57...
Kb4 {[%clk 0:00:35.5]} 58. Be8 {[%clk 0:00:47.7]} 58... Kc5 {[%clk 0:00:36.9]}
59. Bf7 {[%clk 0:00:49.1]} 59... Kd6 {[%clk 0:00:38.3]} 60. Be8 {[%clk
0:00:50.2]} 60... Ke7 {[%clk 0:00:39]} 61. Bc6 {[%clk 0:00:50.8]} 61... g5
{[%clk 0:00:38.8]} 62. Bb5 {[%clk 0:00:50.1]} 62... Kd6 {[%clk 0:00:38.6]} 63.
Be2 {[%clk 0:00:47.4]} 63... h4 {[%clk 0:00:38.9]} 64. gxh4 {[%clk 0:00:48.7]}
64... gxh4 {[%clk 0:00:40]} 65. Ba6 {[%clk 0:00:42.6]} 65... Ke7 {[%clk
0:00:40.2]} 66. Bb7 {[%clk 0:00:39.4]} 66... Kf6 {[%clk 0:00:41.1]} 67. Kg2
{[%clk 0:00:41]} 67... Kg5 {[%clk 0:00:41.8]} 68. Kh2 {[%clk 0:00:41.1]} 68...
Kg4 {[%clk 0:00:42.2]} 69. Kg2 {[%clk 0:00:41.6]} 69... h3+ {[%clk 0:00:43]} 70.
Kf2 {[%clk 0:00:39.8]} 70... Kh4 {[%clk 0:00:39.8]} 71. Bc6 {[%clk 0:00:38.3]}
71... Kg5 {[%clk 0:00:39.3]} 72. Kg3 {[%clk 0:00:33.4]} 72... Kf6 {[%clk
0:00:39]} 73. Bxe4 {[%clk 0:00:33.3]} 73... Bxe4 {[%clk 0:00:38.9]} 74. Kxh3
{[%clk 0:00:35.2]} 74... Bf5+ {[%clk 0:00:39.7]} 75. Kg3 {[%clk 0:00:35.5]}
75... Ke5 {[%clk 0:00:40.8]} 76. e4 {[%clk 0:00:36.7]} 76... Bxe4 {[%clk
0:00:41.6]} 1/2-1/2

[Event "*** MasterClass Titled Tuesday Blitz"]
[Site "Chess.com"]
[Date "2017.10.03"]
[Round "5"]
[White "Keaton87"]
[Black "Kouzari"]
[Result "1/2-1/2"]
[WhiteElo "2456"]
[BlackElo "2535"]
[TimeControl "180+2"]
[EndTime "14:09:10 PDT"]
[Termination "Game drawn - insufficient material"]

1. e4 {[%clk 0:03:01.9]} 1... e6 {[%clk 0:02:59.2]} 2. d4 {[%clk 0:03:02.5]}
2... d5 {[%clk 0:03:01.1]} 3. Nd2 {[%clk 0:03:04]} 3... Nc6 {[%clk 0:03:01.4]}
4. Ngf3 {[%clk 0:03:03.3]} 4... Nf6 {[%clk 0:03:02.7]} 5. e5 {[%clk 0:03:02.9]}
5... Nd7 {[%clk 0:03:04.2]} 6. Bd3 {[%clk 0:03:03.4]} 6... Nb4 {[%clk
0:03:04.1]} 7. Be2 {[%clk 0:03:04.2]} 7... c5 {[%clk 0:03:05.6]} 8. c3 {[%clk
0:03:04.9]} 8... Nc6 {[%clk 0:03:07.1]} 9. O-O {[%clk 0:03:06.1]} 9... Be7
{[%clk 0:03:07.7]} 10. Re1 {[%clk 0:03:05.5]} 10... O-O {[%clk 0:03:07.7]} 11.
Nf1 {[%clk 0:03:06.6]} 11... a5 {[%clk 0:03:08]} 12. Be3 {[%clk 0:03:06.3]}
12... a4 {[%clk 0:03:09]} 13. Ng3 {[%clk 0:03:05.5]} 13... a3 {[%clk 0:03:09.8]}
14. b3 {[%clk 0:03:06.1]} 14... cxd4 {[%clk 0:03:09.8]} 15. cxd4 {[%clk
0:03:06]} 15... g6 {[%clk 0:03:08.5]} 16. Bh6 {[%clk 0:03:05.1]} 16... Re8
{[%clk 0:03:09.8]} 17. Qd2 {[%clk 0:03:02.1]} 17... Bf8 {[%clk 0:03:02.5]} 18.
Bxf8 {[%clk 0:03:00.5]} 18... Rxf8 {[%clk 0:02:59.3]} 19. Qh6 {[%clk 0:03:00.2]}
19... f6 {[%clk 0:02:47]} 20. exf6 {[%clk 0:02:59.5]} 20... Nxf6 {[%clk
0:02:48.6]} 21. Ne5 {[%clk 0:02:58.6]} 21... Nxe5 {[%clk 0:02:33.1]} 22. dxe5
{[%clk 0:02:59.2]} 22... Nd7 {[%clk 0:02:33.3]} 23. Bd3 {[%clk 0:02:54.5]} 23...
Rf7 {[%clk 0:02:34.4]} 24. Re3 {[%clk 0:02:51.1]} 24... Qf8 {[%clk 0:01:58.4]}
25. Qxf8+ {[%clk 0:02:29]} 25... Nxf8 {[%clk 0:02:00.3]} 26. Rc1 {[%clk
0:02:28.9]} 26... Bd7 {[%clk 0:02:01.1]} 27. Ne2 {[%clk 0:02:26.9]} 27... g5
{[%clk 0:01:57.3]} 28. Nd4 {[%clk 0:02:26.1]} 28... Rf4 {[%clk 0:01:57.7]} 29.
Ne2 {[%clk 0:02:23.8]} 29... Rb4 {[%clk 0:01:52]} 30. Kf1 {[%clk 0:02:22.5]}
30... Rc8 {[%clk 0:01:41.2]} 31. Rxc8 {[%clk 0:02:21.9]} 31... Bxc8 {[%clk
0:01:42.3]} 32. Rg3 {[%clk 0:02:21.5]} 32... Kf7 {[%clk 0:01:32.5]} 33. Rxg5
{[%clk 0:02:21.4]} 33... Rxb3 {[%clk 0:01:31.1]} 34. Rg3 {[%clk 0:02:03]} 34...
Rb2 {[%clk 0:01:30.9]} 35. Nc1 {[%clk 0:01:50.2]} 35... b5 {[%clk 0:01:28.5]}
36. Rf3+ {[%clk 0:01:38]} 36... Ke7 {[%clk 0:01:28.6]} 37. Ke1 {[%clk
0:01:35.6]} 37... b4 {[%clk 0:01:29.3]} 38. Be2 {[%clk 0:01:18]} 38... Ng6
{[%clk 0:01:25.2]} 39. Rh3 {[%clk 0:01:16.5]} 39... Nxe5 {[%clk 0:01:20.5]} 40.
Rxh7+ {[%clk 0:01:17.1]} 40... Kd6 {[%clk 0:01:22]} 41. h4 {[%clk 0:01:17.1]}
41... Rb1 {[%clk 0:01:02.7]} 42. Kd2 {[%clk 0:01:14.2]} 42... Nc4+ {[%clk
0:01:03]} 43. Kd1 {[%clk 0:01:01.5]} 43... Ba6 {[%clk 0:00:41.6]} 44. Ra7 {[%clk
0:00:56.7]} 44... Bb5 {[%clk 0:00:31.6]} 45. h5 {[%clk 0:00:57.8]} 45... Nb2+
{[%clk 0:00:29.2]} 46. Kc2 {[%clk 0:00:56.1]} 46... Rxc1+ {[%clk 0:00:28.6]} 47.
Kxc1 {[%clk 0:00:57.1]} 47... Bxe2 {[%clk 0:00:30.5]} 48. h6 {[%clk 0:00:58]}
48... Bd3 {[%clk 0:00:28.3]} 49. h7 {[%clk 0:00:57.8]} 49... Bxh7 {[%clk
0:00:29.1]} 50. Rxh7 {[%clk 0:00:59.3]} 50... Nd3+ {[%clk 0:00:30.6]} 51. Kc2
{[%clk 0:00:41.3]} 51... Nxf2 {[%clk 0:00:30.6]} 52. Kb3 {[%clk 0:00:41.2]}
52... Kc5 {[%clk 0:00:29.8]} 53. Rc7+ {[%clk 0:00:38.1]} 53... Kd4 {[%clk
0:00:30.8]} 54. Kxb4 {[%clk 0:00:38.6]} 54... e5 {[%clk 0:00:32.2]} 55. Kxa3
{[%clk 0:00:39.3]} 55... e4 {[%clk 0:00:33.6]} 56. Kb3 {[%clk 0:00:38.9]} 56...
Ke3 {[%clk 0:00:33.8]} 57. a4 {[%clk 0:00:38.3]} 57... d4 {[%clk 0:00:32.6]} 58.
a5 {[%clk 0:00:39.5]} 58... d3 {[%clk 0:00:34.1]} 59. Rd7 {[%clk 0:00:11.5]}
59... d2 {[%clk 0:00:34.1]} 60. Kc2 {[%clk 0:00:07.8]} 60... d1=Q+ {[%clk
0:00:33.3]} 61. Rxd1 {[%clk 0:00:08.3]} 61... Nxd1 {[%clk 0:00:34.9]} 62. a6
{[%clk 0:00:09.7]} 62... Ke2 {[%clk 0:00:36.4]} 63. a7 {[%clk 0:00:10.5]} 63...
Ne3+ {[%clk 0:00:38.3]} 64. Kb3 {[%clk 0:00:10.7]} 64... Nxg2 {[%clk 0:00:38]}
65. a8=Q {[%clk 0:00:11.8]} 65... Kf3 {[%clk 0:00:38.7]} 66. Kc3 {[%clk
0:00:08.5]} 66... Nf4 {[%clk 0:00:38.7]} 67. Kd2 {[%clk 0:00:04.3]} 67... Ng2
{[%clk 0:00:36.5]} 68. Qf8+ {[%clk 0:00:04.5]} 68... Nf4 {[%clk 0:00:37.6]} 69.
Qf5 {[%clk 0:00:04.1]} 69... e3+ {[%clk 0:00:38.8]} 70. Ke1 {[%clk 0:00:05.4]}
70... Kg3 {[%clk 0:00:35.2]} 71. Qe4 {[%clk 0:00:07]} 71... e2 {[%clk 0:00:35]}
72. Qe3+ {[%clk 0:00:08.2]} 72... Kg4 {[%clk 0:00:36.4]} 73. Kf2 {[%clk
0:00:08.8]} 73... e1=Q+ {[%clk 0:00:36.8]} 74. Qxe1 {[%clk 0:00:06.7]} 74...
Nd3+ {[%clk 0:00:37.8]} 75. Ke2 {[%clk 0:00:07.7]} 75... Nxe1 {[%clk 0:00:39.7]}
1/2-1/2